[Event "9. Korbacher Open 2017"]
[Site "Korbach"]
[Date "2017.10.22"]
[Round "6"]
[White "Rutz, Matthias"]
[Black "Van de Griend, Johan"]
[Result "1-0"]
[ECO "D00"]
[WhiteElo "2046"]
[BlackElo "1797"]
[Annotator "NA"]
[PlyCount "113"]
[EventDate "2017.??.??"]
[EventType "swiss"]
[EventCountry "GER"]
[SourceTitle "playchess.com"]
[Source "ChessBase"]
[SourceQuality "1"]
[TimeControl "40/5400+30:1800+30"]

1. d4 {[%emt 0:00:00]} d5 {[%emt 0:00:30]} 2. Bf4 {[%emt 0:00:30]} e6 {[%emt 0:00:30]} 3. e3 {[%emt 0:00:30]} Bd6 {[%emt 0:00:30]} 4. Nf3 {[%emt 0:01:53]} Bxf4 {[%emt 0:01:48]} 5. exf4 {[%emt 0:00:16]} Nf6 {[%emt 0:01:09] D02: Damenbauernspiele} 6. c3 {[%emt 0:03:58]} O-O {[%emt 0:03:24]} 7. Bd3 {[%emt 0:03:53]} (7. Nbd2 c5 8. dxc5 Qc7 9. g3 Nbd7 10. Nb3 a5 11. a4 e5 12. fxe5 Nxe5 13. Nxe5 Qxe5+ {½-½ (40) Hasangatin,R (2509)-Popov,I (2618) Sochi 2017}) 7... Nbd7 {[%emt 0:00:47]} 8. Nbd2 {[%emt 0:05:46]} c5 {[%emt 0:03:16]} 9. O-O {[%emt 0:02:27]} Qb6 {[%emt 0:03:29]} 10. Rb1 {[%emt 0:01:48]} Qc7 $146 {[%emt 0:05:34]} ({Vorgänger:} 10... Nb8 11. dxc5 Qxc5 12. g3 Nc6 13. Nb3 Qb6 14. Re1 Bd7 15. Qd2 a5 16. Qe3 Qc7 {½-½ (27) Kataev,S (2385)-Godes,D (2405) Tel Aviv 1994}) 11. g3 {[%emt 0:02:17]} c4 {[%emt 0:01:03]} 12. Bc2 {[%emt 0:01:18]} b5 {[%emt 0:00:12]} 13. Ne5 {[%emt 0:03:55]} Rb8 {[%emt 0:02:29]} 14. Qe2 {[%emt 0:04:08]} a5 {[%emt 0:00:49]} 15. Rfe1 {[%emt 0:03:29]} g6 {[%emt 0:03:25]} 16. Ndf3 {[%emt 0:02:18]} b4 {[%emt 0:01:15]} 17. Qe3 {[%emt 0:03:59]} b3 {[%emt 0:10:33]} 18. axb3 {[%emt 0:01:14]} cxb3 {[%emt 0:00:01]} 19. Bd3 {[%emt 0:00:25]} Nb6 {[%emt 0:00:15]} 20. Rec1 {[%emt 0:02:40]} Nc4 {[%emt 0:00:49]} 21. Qe2 {[%emt 0:02:37]} Ba6 {[%emt 0:02:27]} 22. Ra1 $14 {[%emt 0:09:23]} Bb5 {[%emt 0:04:46]} 23. Nd2 {[%emt 0:03:27]} Nxd2 {[%emt 0:07:17]} 24. Bxb5 {[%emt 0:03:53]} Nde4 {[%emt 0:00:21]} 25. Bd3 {[%emt 0:07:31]} Nd6 {[%emt 0:03:55]} 26. Ra4 {[%emt 0:00:43]} Rb4 {[%emt 0:03:40]} 27. Raa1 {[%emt 0:01:44]} Rbb8 {[%emt 0:01:00]} 28. Ra3 {[%emt 0:01:15]} Qb6 {[%emt 0:05:59]} 29. Rca1 {[%emt 0:02:21]} Ra8 {[%emt 0:00:33]} 30. g4 {[%emt 0:01:55]} Ra7 {[%emt 0:03:00]} 31. h4 {[%emt 0:02:38]} Rb8 {[%emt 0:09:09]} 32. Kg2 {[%emt 0:01:55]} Kg7 {[%emt 0:01:38]} 33. Qd1 {[%emt 0:04:38]} Nc4 {[%emt 0:01:09]} 34. Bxc4 {[%emt 0:02:51]} dxc4 {[%emt 0:00:02]} 35. Qf3 {[%emt 0:02:58]} Rc8 {[%emt 0:04:21]} 36. Ra4 {[%emt 0:00:43]} Qb5 {[%emt 0:00:23]} 37. Kg3 {[%emt 0:03:08]} Nd5 {[%emt 0:00:31]} 38. g5 {[%emt 0:03:31]} Ne7 {[%emt 0:04:51]} 39. Kh3 {[%emt 0:01:45]} Nf5 {[%emt 0:02:32]} 40. Qe2 {[%emt 0:00:29]} Nd6 {[%emt 0:31:51]} 41. Ng4 {[%emt 0:33:28]} Qf5 {[%emt 0:01:19]} 42. Qe5+ {[%emt 0:00:00]} Qxe5 {[%emt 0:00:00]} 43. Nxe5 {[%emt 0:00:00]} Ne4 {[%emt 0:00:00]} 44. Kg2 {[%emt 0:00:00]} Nd6 {[%emt 0:00:00]} 45. Rxa5 {[%emt 0:00:00]} Rac7 {[%emt 0:00:00]} 46. Ra7 {[%emt 0:00:00]} Nb5 {[%emt 0:00:00]} 47. Rxc7 {[%emt 0:00:00]} Rxc7 {[%emt 0:00:00]} 48. Ra4 {[%emt 0:00:00]} Nd6 {[%emt 0:00:00]} 49. Kf3 {[%emt 0:00:00]} f6 {[%emt 0:00:00]} 50. Ng4 {[%emt 0:00:00]} fxg5 {[%emt 0:00:00]} 51. hxg5 {[%emt 0:00:00]} Nb5 {[%emt 0:00:00]} 52. Ne5 {[%emt 0:00:00]} Nd6 {[%emt 0:00:00]} 53. Ra6 {[%emt 0:00:00]} Nb5 {[%emt 0:00:00]} 54. Rb6 {[%emt 0:00:00]} Na7 {[%emt 0:00:00]} 55. Rxe6 {[%emt 0:00:00]} Nc8 {[%emt 0:00:00]} 56. Ke4 {[%emt 0:00:00]} Ne7 {[%emt 0:00:00]} 57. d5 {[%emt 0:00:00]} 1-0

[Event "9. Korbacher Open 2017"]
[Site "Korbach"]
[Date "2017.10.22"]
[Round "6"]
[White "Dijkhuis, Oele"]
[Black "Schmidt, Andre"]
[Result "1-0"]
[ECO "B07"]
[WhiteElo "2035"]
[BlackElo "2154"]
[Annotator "NA"]
[PlyCount "71"]
[EventDate "2017.??.??"]
[EventType "swiss"]
[EventCountry "GER"]
[SourceTitle "playchess.com"]
[Source "ChessBase"]
[SourceQuality "1"]
[TimeControl "40/5400+30:1800+30"]

1. e4 {[%emt 0:00:00]} d6 {[%emt 0:00:25]} 2. d4 {[%emt 0:00:00]} Nf6 {[%emt 0:00:09]} 3. Nc3 {[%emt 0:00:00]} c6 {[%emt 0:00:20]} 4. f3 {[%emt 0:03:19]} Nbd7 {[%emt 0:03:58]} 5. Be3 {[%emt 0:03:23]} e5 {[%emt 0:02:03]} 6. Nge2 {[%emt 0:03:13]} Be7 {[%emt 0:01:22]} 7. Qd2 {[%emt 0:01:11]} O-O {[%emt 0:02:54]} 8. Ng3 {[%emt 0:07:31]} Re8 {[%emt 0:03:25]} 9. Nf5 {[%emt 0:05:11]} Bf8 {[%emt 0:00:36]} 10. O-O-O {[%emt 0:02:14]} Qc7 {[%emt 0:04:55]} (10... d5 $11) 11. g4 {[%emt 0:04:17]} exd4 $14 {[%emt 0:01:53]} 12. Nxd4 {[%emt 0:09:12]} Nc5 {[%emt 0:05:03]} 13. h4 {[%emt 0:03:36]} b5 {[%emt 0:05:01]} 14. g5 {[%emt 0:01:15]} Nh5 {[%emt 0:00:38]} 15. Nxc6 {[%emt 0:04:07]} Ng3 {[%emt 0:05:47]} 16. Nd4 {[%emt 0:01:46]} Nxh1 {[%emt 0:01:08]} 17. Bxb5 {[%emt 0:02:34]} Bd7 {[%emt 0:01:23]} 18. Rxh1 {[%emt 0:03:26]} Rab8 {[%emt 0:03:04]} 19. b3 {[%emt 0:02:53]} Qa5 {[%emt 0:03:18]} 20. a4 {[%emt 0:02:17]} Rec8 {[%emt 0:02:55]} 21. Bxd7 {[%emt 0:03:07]} Nxd7 {[%emt 0:00:17]} 22. Nd5 {[%emt 0:05:16]} Qa6 {[%emt 0:08:03]} 23. h5 {[%emt 0:02:00]} Nc5 {[%emt 0:03:00]} 24. Kb1 {[%emt 0:02:45]} Nxa4 {[%emt 0:03:18]} 25. Nf5 {[%emt 0:01:17]} Rb7 {[%emt 0:09:32]} 26. h6 {[%emt 0:01:29]} Rcb8 {[%emt 0:05:00]} 27. b4 {[%emt 0:07:56]} Rxb4+ {[%emt 0:08:39]} 28. Nxb4 {[%emt 0:00:09]} Qc4 {[%emt 0:00:20]} 29. Kc1 {[%emt 0:00:54]} Nc3 {[%emt 0:01:03]} 30. hxg7 {[%emt 0:01:07]} Bxg7 {[%emt 0:02:30]} 31. Qh2 {[%emt 0:01:30]} Ne2+ {[%emt 0:06:06]} 32. Kd1 {[%emt 0:01:19]} Nc3+ {[%emt 0:00:12]} 33. Ke1 {[%emt 0:00:32]} h5 {[%emt 0:00:59]} 34. gxh6 {[%emt 0:02:32]} Bf6 {[%emt 0:03:57]} 35. Qg2+ {[%emt 0:03:39]} Kh7 {[%emt 0:01:15]} 36. Qg7+ {[%emt 0:05:49]} 1-0

[Event "9. Korbacher Open 2017"]
[Site "Korbach"]
[Date "2017.10.22"]
[Round "6"]
[White "Van Randtwijk, Mick"]
[Black "Stork, Oliver"]
[Result "0-1"]
[ECO "B19"]
[WhiteElo "2028"]
[BlackElo "2176"]
[Annotator "NA"]
[PlyCount "106"]
[EventDate "2017.??.??"]
[EventType "swiss"]
[EventCountry "GER"]
[SourceTitle "playchess.com"]
[Source "ChessBase"]
[SourceQuality "1"]
[TimeControl "40/5400+30:1800+30"]

1. e4 {[%emt 0:00:00]} c6 {[%emt 0:00:06]} 2. d4 {[%emt 0:00:00]} d5 {[%emt 0:00:05]} 3. Nc3 {[%emt 0:00:00]} dxe4 {[%emt 0:00:06]} 4. Nxe4 {[%emt 0:00:00]} Bf5 {[%emt 0:00:09]} 5. Ng3 {[%emt 0:00:00]} Bg6 {[%emt 0:00:07]} 6. h4 {[%emt 0:00:08]} h6 {[%emt 0:00:05]} 7. Nf3 {[%emt 0:00:07]} Nd7 {[%emt 0:00:06]} 8. h5 {[%emt 0:00:06]} Bh7 {[%emt 0:00:05] LiveBook: 6505 Games} 9. Bd3 {[%emt 0:00:07]} Bxd3 {[%emt 0:00:06]} 10. Qxd3 {[%emt 0:00:06]} e6 {[%emt 0:00:07]} 11. Bd2 {[%emt 0:00:15]} Ngf6 {[%emt 0:00:07]} 12. O-O-O {[%emt 0:00:11]} Be7 {[%emt 0:00:08]} 13. Kb1 {[%emt 0:00:09]} Qb6 {[%emt 0:00:10]} 14. Rhe1 {[%emt 0:00:23]} O-O {[%emt 0:01:29]} 15. Nf5 {[%emt 0:00:27]} exf5 {[%emt 0:00:11]} 16. Rxe7 {[%emt 0:00:09]} Qd8 {[%emt 0:04:09]} 17. Re2 {[%emt 0:00:11]} Ne4 {[%emt 0:01:38]} 18. g3 {[%emt 0:00:42]} Ndf6 {[%emt 0:01:36]} 19. Nh4 {[%emt 0:00:57]} Qd7 {[%emt 0:03:21]} 20. Qf3 {[%emt 0:00:42]} Qxd4 {[%emt 0:04:02]} 21. Nxf5 {[%emt 0:00:10]} Qe5 {[%emt 0:46:51]} 22. Bc1 {[%emt 0:00:21]} Rfe8 {[%emt 0:01:13]} 23. Rde1 {[%emt 0:00:14]} Re6 {[%emt 0:03:09]} 24. g4 {[%emt 0:12:36]} Rae8 {[%emt 0:02:55]} 25. Ka1 {[%emt 0:00:43]} Qc5 {[%emt 0:10:42]} 26. Be3 {[%emt 0:16:29]} Qc4 {[%emt 0:00:51]} 27. Nd4 {[%emt 0:05:01]} Rd6 {[%emt 0:02:45]} 28. Nb3 $17 {[%emt 0:14:22]} Red8 {[%emt 0:04:56]} 29. Bc1 {[%emt 0:02:09]} Ng5 {[%emt 0:02:37]} 30. Bxg5 {[%emt 0:16:35]} hxg5 {[%emt 0:00:06]} 31. a3 {[%emt 0:04:17]} Qxg4 {[%emt 0:02:05]} 32. Re8+ {[%emt 0:04:55]} Rxe8 {[%emt 0:00:49]} 33. Rxe8+ {[%emt 0:00:08]} Kh7 {[%emt 0:00:04]} 34. Qxg4 {[%emt 0:00:11]} Nxg4 {[%emt 0:00:03]} 35. Re7 {[%emt 0:00:09]} Nxf2 {[%emt 0:01:56]} 36. Rxf7 {[%emt 0:00:41]} Ne4 {[%emt 0:03:15]} 37. Re7 {[%emt 0:03:10]} Nf6 {[%emt 0:00:38]} 38. Nc5 {[%emt 0:03:30]} g4 {[%emt 0:01:11]} 39. Nd3 {[%emt 0:08:57]} Nxh5 {[%emt 0:01:56]} 40. Re4 {[%emt 0:01:25]} Nf6 {[%emt 0:31:22]} 41. Re2 {[%emt 0:31:40]} Kh6 {[%emt 0:00:00]} 42. Re5 {[%emt 0:00:00]} Rd5 {[%emt 0:00:00]} 43. Re3 {[%emt 0:00:00]} Kg5 {[%emt 0:00:00]} 44. Kb1 {[%emt 0:00:00]} Kh4 {[%emt 0:00:00]} 45. Kc1 {[%emt 0:00:00]} Rxd3 {[%emt 0:00:00]} 46. cxd3 {[%emt 0:00:00]} g3 {[%emt 0:00:00]} 47. Kd2 {[%emt 0:00:00]} g2 {[%emt 0:00:00]} 48. Re1 {[%emt 0:00:00]} Kg3 {[%emt 0:00:00]} 49. Ke2 {[%emt 0:00:00]} Ng4 {[%emt 0:00:00]} 50. Ra1 {[%emt 0:00:00]} Kh2 {[%emt 0:00:00]} 51. Kf3 {[%emt 0:00:00]} Ne5+ {[%emt 0:00:00]} 52. Ke4 {[%emt 0:00:00]} Nxd3 {[%emt 0:00:00]} 53. Kxd3 {[%emt 0:00:00]} g1=Q {[%emt 0:00:00] Kd4} 0-1

[Event "9. Korbacher Open 2017"]
[Site "Korbach"]
[Date "2017.10.22"]
[Round "6"]
[White "Rubina, Tatiana"]
[Black "Nemetz, Markus"]
[Result "1/2-1/2"]
[ECO "B92"]
[WhiteElo "2022"]
[BlackElo "1951"]
[Annotator "NA"]
[PlyCount "86"]
[EventDate "2017.??.??"]
[EventType "swiss"]
[EventCountry "GER"]
[SourceTitle "playchess.com"]
[Source "ChessBase"]
[SourceQuality "1"]
[TimeControl "40/5400+30:1800+30"]

1. e4 {[%emt 0:00:00]} c5 {[%emt 0:00:07]} 2. Nf3 {[%emt 0:00:00]} d6 {[%emt 0:00:11]} 3. d4 {[%emt 0:00:00]} cxd4 {[%emt 0:00:06]} 4. Nxd4 {[%emt 0:00:00]} Nf6 {[%emt 0:00:10]} 5. Nc3 {[%emt 0:00:00]} a6 {[%emt 0:00:05]} 6. Be2 {[%emt 0:00:00]} e5 {[%emt 0:00:07]} 7. Nb3 {[%emt 0:00:07] LiveBook: 6218 Games} Be6 {[%emt 0:00:22]} 8. O-O {[%emt 0:00:29]} Be7 {[%emt 0:00:11]} 9. f4 {[%emt 0:07:05]} O-O {[%emt 0:04:51] B92: Sicilian Najdorf: 6 Be2} 10. Kh1 {[%emt 0:02:15]} exf4 {[%emt 0:15:13]} 11. Bxf4 {[%emt 0:00:14]} d5 {[%emt 0:04:53]} (11... Nc6 12. Qe1 d5 13. exd5 Nxd5 14. Rd1 Bb4 15. Bf3 Nce7 16. Be5 Bxc3 17. Bxc3 Qc7 18. Be5 Qxc2 19. Be4 Qc8 20. Qg3 {0-1 (35) Jakovenko,D (2736)-Naiditsch,A (2689) Moscow 2009}) 12. e5 {[%emt 0:03:38]} Ne4 {[%emt 0:02:05]} 13. Bd3 $146 {[%emt 0:03:32]} ({Predecessor:} 13. Nxe4 dxe4 14. Nd4 Nc6 15. Nxe6 fxe6 16. Bc4 Nd4 17. Qg4 Qc8 {1-0 (55) Delorme,A (2328)-Idrisov,T (2191) Kemer 2007}) 13... Nxc3 {[%emt 0:05:19]} 14. bxc3 {[%emt 0:00:05]} Nc6 {[%emt 0:01:31]} 15. Nd4 {[%emt 0:00:33]} Nxd4 {[%emt 0:04:18]} 16. cxd4 $14 {[%emt 0:00:07]} Qd7 {[%emt 0:00:36]} 17. Qf3 {[%emt 0:06:53]} f5 {[%emt 0:10:54]} 18. a4 {[%emt 0:12:46]} Bb4 {[%emt 0:06:30]} 19. Qf2 {[%emt 0:00:59]} Rac8 {[%emt 0:03:23]} 20. Bd2 {[%emt 0:00:34]} Bc3 {[%emt 0:03:33]} 21. Bxc3 {[%emt 0:00:34]} Rxc3 {[%emt 0:00:02]} 22. Qd2 {[%emt 0:00:58]} Rc6 {[%emt 0:01:08]} 23. Rab1 {[%emt 0:03:03]} h6 {[%emt 0:04:00]} 24. Rb4 {[%emt 0:05:14]} g5 {[%emt 0:02:38]} 25. Rfb1 {[%emt 0:01:04]} Rc7 {[%emt 0:00:23]} 26. Rb6 {[%emt 0:02:20]} f4 {[%emt 0:01:06]} 27. Rd6 {[%emt 0:01:37]} Qf7 {[%emt 0:01:10]} 28. Rf1 {[%emt 0:05:35]} Rc6 {[%emt 0:04:48]} 29. Rxc6 {[%emt 0:04:34]} bxc6 {[%emt 0:00:49]} 30. Qa5 {[%emt 0:03:06]} g4 {[%emt 0:06:16]} 31. Qxa6 {[%emt 0:17:47]} Bd7 {[%emt 0:10:07]} 32. Qb7 {[%emt 0:05:22]} f3 {[%emt 0:02:53]} 33. gxf3 {[%emt 0:00:24]} gxf3 {[%emt 0:00:33]} 34. Rf2 {[%emt 0:12:47]} Kh8 {[%emt 0:02:09]} 35. Qb1 {[%emt 0:01:42]} Qf4 {[%emt 0:01:00]} 36. c3 {[%emt 0:00:31]} Qe3 {[%emt 0:00:24]} 37. Qf1 {[%emt 0:00:30]} Bg4 {[%emt 0:02:01]} 38. a5 {[%emt 0:00:29]} Kg7 {[%emt 0:00:46]} 39. Qg1 {[%emt 0:01:00]} Qxd3 {[%emt 0:00:36]} 40. Qxg4+ {[%emt 0:00:13]} Kh8 {[%emt 0:30:41]} 41. Qh3 {[%emt 0:31:30]} Qe3 {[%emt 0:00:00]} 42. Rf1 Rg8 43. Rf2 Rf8 1/2-1/2

[Event "9. Korbacher Open 2017"]
[Site "Korbach"]
[Date "2017.10.22"]
[Round "6"]
[White "Maar, Samuel"]
[Black "Shkolnyk, Boris"]
[Result "1-0"]
[ECO "C05"]
[WhiteElo "1998"]
[BlackElo "1812"]
[Annotator "NA"]
[PlyCount "67"]
[EventDate "2017.??.??"]
[EventType "swiss"]
[EventCountry "GER"]
[SourceTitle "playchess.com"]
[Source "ChessBase"]
[SourceQuality "1"]
[TimeControl "40/5400+30:1800+30"]

1. e4 {[%emt 0:00:00]} e6 {[%emt 0:00:21]} 2. d4 {[%emt 0:00:00]} d5 {[%emt 0:00:14]} 3. Nd2 {[%emt 0:00:00]} Nf6 {[%emt 0:01:15]} 4. e5 {[%emt 0:00:00]} Nfd7 {[%emt 0:00:05]} 5. Bd3 {[%emt 0:00:00]} c5 {[%emt 0:00:13]} 6. c3 {[%emt 0:02:26]} b6 {[%emt 0:03:49]} 7. Ne2 {[%emt 0:01:31]} Ba6 {[%emt 0:01:25]} 8. Bc2 {[%emt 0:02:07]} Nc6 {[%emt 0:01:04]} 9. Nf3 {[%emt 0:08:39]} Be7 {[%emt 0:01:53]} 10. O-O {[%emt 0:04:01]} Rc8 {[%emt 0:02:13]} 11. Re1 {[%emt 0:04:20]} Bxe2 {[%emt 0:04:10]} 12. Rxe2 {[%emt 0:05:16]} cxd4 {[%emt 0:02:41]} 13. cxd4 {[%emt 0:06:16]} Nb4 {[%emt 0:06:25]} 14. Bb3 {[%emt 0:01:15]} O-O {[%emt 0:01:07]} 15. a3 {[%emt 0:04:37]} Nc6 {[%emt 0:01:07]} 16. Bc2 {[%emt 0:07:10]} Re8 $16 {[%emt 0:09:25]} 17. Re3 {[%emt 0:03:47]} Nf8 {[%emt 0:03:41]} 18. Bd2 {[%emt 0:08:12]} Ng6 {[%emt 0:05:46]} 19. Rc1 {[%emt 0:02:04]} Rf8 {[%emt 0:11:30]} 20. Rc3 {[%emt 0:00:51]} Nxd4 {[%emt 0:28:54]} 21. Nxd4 {[%emt 0:04:20]} Rxc3 {[%emt 0:00:38]} 22. Bxc3 {[%emt 0:00:06]} Bg5 {[%emt 0:01:29]} 23. Rb1 {[%emt 0:01:50]} Qc7 {[%emt 0:02:18]} 24. Qg4 {[%emt 0:09:10]} Bh6 {[%emt 0:00:52]} 25. Re1 {[%emt 0:02:16]} Rd8 {[%emt 0:01:37]} 26. h4 {[%emt 0:01:43]} a5 {[%emt 0:02:39]} 27. h5 {[%emt 0:03:24]} Nf8 {[%emt 0:01:29]} 28. f4 {[%emt 0:01:34]} Qc5 {[%emt 0:01:42]} 29. Kh2 {[%emt 0:01:55]} b5 {[%emt 0:00:16]} 30. Bxa5 {[%emt 0:10:12]} Qxd4 {[%emt 0:00:09]} 31. Bxd8 {[%emt 0:00:54]} Bxf4+ {[%emt 0:00:53]} 32. Kh1 {[%emt 0:02:14]} Qf2 {[%emt 0:00:45]} 33. Bh4 {[%emt 0:01:08]} Qxc2 {[%emt 0:01:24]} 34. Qxf4 {[%emt 0:00:05]} 1-0

[Event "9. Korbacher Open 2017"]
[Site "Korbach"]
[Date "2017.10.22"]
[Round "6"]
[White "Lesny, Florian"]
[Black "Trienekens, Tjark"]
[Result "1-0"]
[ECO "B35"]
[WhiteElo "1997"]
[BlackElo "1865"]
[Annotator "NA"]
[PlyCount "111"]
[EventDate "2017.??.??"]
[EventType "swiss"]
[EventCountry "GER"]
[SourceTitle "playchess.com"]
[Source "ChessBase"]
[SourceQuality "1"]
[TimeControl "40/5400+30:1800+30"]

1. e4 {[%emt 0:00:00]} c5 {[%emt 0:04:40]} 2. Nf3 {[%emt 0:00:00]} Nc6 {[%emt 0:01:03]} 3. d4 {[%emt 0:00:00]} cxd4 {[%emt 0:00:05]} 4. Nxd4 {[%emt 0:00:00]} g6 {[%emt 0:00:12]} 5. Nc3 {[%emt 0:00:03]} Bg7 {[%emt 0:00:18]} 6. Be3 {[%emt 0:00:07]} Nf6 {[%emt 0:09:26]} 7. Bc4 {[%emt 0:02:11]} O-O {[%emt 0:09:01] LiveBook: 3303 Games} 8. Bb3 {[%emt 0:00:21]} a6 {[%emt 0:02:34]} 9. f3 {[%emt 0:02:25]} e6 {[%emt 0:02:12]} 10. Qd2 {[%emt 0:06:14]} Na5 $14 {[%emt 0:11:34]} 11. g4 {[%emt 0:03:43]} Nxb3 {[%emt 0:01:23]} 12. Nxb3 {[%emt 0:04:02]} d5 {[%emt 0:05:22]} 13. O-O-O {[%emt 0:03:53]} Bd7 {[%emt 0:07:48]} 14. g5 {[%emt 0:05:08]} Nh5 {[%emt 0:00:47]} 15. exd5 {[%emt 0:00:55]} exd5 {[%emt 0:05:38]} 16. Nxd5 {[%emt 0:04:46]} Bc6 {[%emt 0:02:27]} 17. Bb6 {[%emt 0:02:18]} Qxd5 {[%emt 0:07:44]} 18. Qxd5 {[%emt 0:00:26]} Bxd5 {[%emt 0:00:03]} 19. Rxd5 {[%emt 0:00:09]} Nf4 {[%emt 0:06:53]} 20. Rd7 {[%emt 0:06:06]} Rac8 {[%emt 0:02:53]} 21. Kb1 {[%emt 0:04:08]} Rfe8 {[%emt 0:05:42]} 22. Nd4 {[%emt 0:22:01]} Nh3 {[%emt 0:04:35]} 23. Rxb7 {[%emt 0:09:08]} Rb8 {[%emt 0:03:15]} 24. Rxb8 {[%emt 0:00:28]} Rxb8 {[%emt 0:00:01]} 25. Bc5 {[%emt 0:00:40]} Rc8 {[%emt 0:00:10]} 26. Nb3 {[%emt 0:00:51]} Nxg5 {[%emt 0:00:29]} 27. f4 {[%emt 0:06:32]} Ne4 {[%emt 0:00:32]} 28. Be3 {[%emt 0:03:25]} Re8 {[%emt 0:03:45]} 29. Bc1 {[%emt 0:00:43]} Nf2 {[%emt 0:00:40]} 30. Rf1 {[%emt 0:00:26]} Re2 {[%emt 0:00:12]} 31. Nc5 {[%emt 0:00:57]} a5 {[%emt 0:00:55]} 32. Nb3 {[%emt 0:04:12]} Ne4 {[%emt 0:01:10]} 33. Nxa5 {[%emt 0:01:51]} Rxh2 {[%emt 0:00:56]} 34. Nb3 {[%emt 0:00:58]} Nd6 {[%emt 0:01:18]} 35. a4 {[%emt 0:02:10]} Re2 {[%emt 0:01:04]} 36. Rd1 {[%emt 0:01:02]} Bf8 {[%emt 0:00:41]} 37. a5 {[%emt 0:02:05]} Re8 {[%emt 0:00:11]} 38. Bd2 {[%emt 0:01:22]} Nc4 {[%emt 0:00:41]} 39. Bc3 {[%emt 0:00:35]} Bd6 {[%emt 0:00:25]} 40. Rd4 {[%emt 0:01:22]} Rc8 41. a6 {[%emt 0:06:00]} Bf8 {[%emt 0:15:07]} 42. Rd7 {[%emt 0:03:12]} Ra8 {[%emt 0:05:43]} 43. a7 {[%emt 0:01:45]} h5 {[%emt 0:00:19]} 44. Bd4 {[%emt 0:01:17]} h4 {[%emt 0:01:16]} 45. Bf2 {[%emt 0:06:26]} h3 {[%emt 0:01:29]} 46. Rd3 {[%emt 0:00:18]} Bd6 {[%emt 0:01:32]} 47. Rxh3 {[%emt 0:01:35]} Bxf4 {[%emt 0:00:13]} 48. Rc3 {[%emt 0:01:48]} Ne5 {[%emt 0:02:03]} 49. Nc1 {[%emt 0:05:40]} Ng4 {[%emt 0:02:37]} 50. Bd4 {[%emt 0:01:24]} Be5 {[%emt 0:01:45]} 51. Bxe5 {[%emt 0:00:16]} Nxe5 {[%emt 0:00:02]} 52. Rc7 {[%emt 0:00:39]} g5 {[%emt 0:00:44]} 53. b4 {[%emt 0:00:44]} Nc6 {[%emt 0:02:01]} 54. Rxc6 {[%emt 0:01:42]} Rxa7 {[%emt 0:00:00]} 55. Nd3 {[%emt 0:02:02]} g4 {[%emt 0:00:20]} 56. Rf6 {[%emt 0:01:46]} 1-0

[Event "9. Korbacher Open 2017"]
[Site "Korbach"]
[Date "2017.10.22"]
[Round "6"]
[White "Ohst, Holger"]
[Black "Bluebaum, Johanna"]
[Result "1/2-1/2"]
[ECO "A11"]
[WhiteElo "1986"]
[BlackElo "1955"]
[Annotator "NA"]
[PlyCount "86"]
[EventDate "2017.??.??"]
[EventType "swiss"]
[EventCountry "GER"]
[SourceTitle "playchess.com"]
[Source "ChessBase"]
[SourceQuality "1"]
[TimeControl "40/5400+30:1800+30"]

1. c4 {[%emt 0:00:31]} c6 {[%emt 0:00:16]} 2. g3 {[%emt 0:03:56]} d5 {[%emt 0:00:17]} 3. Bg2 {[%emt 0:00:09]} Nf6 {[%emt 0:00:36]} 4. Nf3 {[%emt 0:01:58]} Bg4 {[%emt 0:01:08]} 5. cxd5 {[%emt 0:11:25]} cxd5 {[%emt 0:01:37]} 6. d4 {[%emt 0:02:28]} Nc6 {[%emt 0:00:37]} 7. Nc3 {[%emt 0:02:10]} e6 {[%emt 0:00:31] D13: Damengambit (Slawische Verteidigung, Abtauschvariante)} 8. O-O {[%emt 0:01:49] LiveBook: 3 Games} Be7 {[%emt 0:00:52]} 9. Ne5 {[%emt 0:10:28]} Bf5 {[%emt 0:02:03]} 10. Nxc6 {[%emt 0:16:29]} bxc6 {[%emt 0:00:15]} 11. Bg5 {[%emt 0:01:02]} (11. Bf4 O-O 12. Rc1 Qa5 13. Na4 Rfc8 14. a3 Qb5 15. Re1 {0-1 (40) Hausrath,D (2537)-Smeets,J (2619) Netherlands 2014}) 11... h6 {[%emt 0:01:03]} 12. Bf4 {[%emt 0:05:12]} O-O {[%emt 0:00:51]} 13. Rc1 {[%emt 0:01:08]} Qb6 {[%emt 0:02:03]} 14. Na4 {[%emt 0:02:52]} Qb5 {[%emt 0:01:19]} 15. h3 $146 {[%emt 0:08:12]} ({Vorgänger:} 15. f3 Rfc8 16. Kh1 Bg6 17. b3 {½-½ (25) Bilek,I (2395)-Lukacs,P (2490) Hungary 1995}) 15... Rfc8 {[%emt 0:01:15]} 16. g4 {[%emt 0:04:34]} Bg6 {[%emt 0:00:55]} 17. b3 {[%emt 0:04:02]} Nd7 {[%emt 0:05:03]} 18. Nc3 {[%emt 0:03:53]} Qa5 {[%emt 0:01:42]} 19. Qd2 {[%emt 0:04:07]} Ba3 {[%emt 0:00:34]} 20. Rcd1 {[%emt 0:02:23]} Bb4 {[%emt 0:00:16]} 21. Rc1 {[%emt 0:00:01]} c5 {[%emt 0:00:46]} 22. Bd6 {[%emt 0:01:18]} Rc6 $19 {[%emt 0:01:35]} 23. dxc5 {[%emt 0:00:16]} Nxc5 {[%emt 0:00:49]} 24. Nxd5 {[%emt 0:02:41]} exd5 {[%emt 0:09:17]} 25. Qxd5 {[%emt 0:01:06]} Rac8 {[%emt 0:05:04]} 26. Rc4 {[%emt 0:01:20]} Qb6 {[%emt 0:04:09]} 27. Bf4 {[%emt 0:01:18]} Re6 {[%emt 0:08:08]} 28. Be3 {[%emt 0:00:32]} Qa5 {[%emt 0:11:06]} 29. Qd4 {[%emt 0:01:04]} Rd8 {[%emt 0:02:48]} 30. Rxc5 {[%emt 0:00:25]} Bxc5 {[%emt 0:04:44]} 31. Qxc5 {[%emt 0:00:10]} Qxa2 {[%emt 0:01:30]} 32. Bd5 {[%emt 0:01:53]} Rxd5 {[%emt 0:04:08]} 33. Qxd5 {[%emt 0:00:18]} Qxe2 {[%emt 0:00:08]} 34. Bxa7 {[%emt 0:01:20]} Be4 {[%emt 0:01:39]} 35. Qd1 {[%emt 0:00:01]} Qa6 {[%emt 0:02:00]} 36. Bc5 {[%emt 0:01:22]} Qc6 {[%emt 0:02:10]} 37. b4 {[%emt 0:00:07]} Bg2 {[%emt 0:03:09]} 38. Qd8+ {[%emt 0:01:50]} Re8 {[%emt 0:08:32]} 39. Qxe8+ {[%emt 0:00:27]} Qxe8 {[%emt 0:00:02]} 40. Kxg2 {[%emt 0:00:01]} Qe4+ {[%emt 0:30:41]} 41. f3 {[%emt 0:05:41]} Qd5 {[%emt 0:00:00]} 42. Rf2 {[%emt 0:01:37]} h5 {[%emt 0:00:00]} 43. Re2 {[%emt 0:09:46]} hxg4 1/2-1/2

[Event "9. Korbacher Open 2017"]
[Site "Korbach"]
[Date "2017.10.22"]
[Round "6"]
[White "Tschoepe, Nino"]
[Black "Braun, Ingram"]
[Result "1/2-1/2"]
[ECO "A43"]
[WhiteElo "1978"]
[BlackElo "2042"]
[Annotator "NA"]
[PlyCount "35"]
[EventDate "2017.??.??"]
[EventType "swiss"]
[EventCountry "GER"]
[SourceTitle "playchess.com"]
[Source "ChessBase"]
[SourceQuality "1"]
[TimeControl "40/5400+30:1800+30"]

1. d4 {[%emt 0:00:00]} c5 {[%emt 0:00:03]} 2. d5 {[%emt 0:00:00]} d6 {[%emt 0:00:03]} 3. e4 {[%emt 0:00:21]} g6 {[%emt 0:00:07]} 4. Nc3 {[%emt 0:00:45]} Bg7 {[%emt 0:00:07]} 5. Bb5+ {[%emt 0:01:27]} Bd7 {[%emt 0:00:30]} 6. a4 {[%emt 0:00:15]} Nf6 {[%emt 0:00:45]} 7. h3 {[%emt 0:01:01]} O-O {[%emt 0:01:12]} 8. Nf3 {[%emt 0:00:12]} Na6 {[%emt 0:01:50] LiveBook: 53 Partien} 9. O-O {[%emt 0:01:05]} Nb4 {[%emt 0:01:16]} 10. Re1 {[%emt 0:02:38]} Rb8 {[%emt 0:05:06]} 11. Bf4 {[%emt 0:02:15]} h6 {[%emt 0:02:36]} 12. Qd2 {[%emt 0:05:53]} Kh7 {[%emt 0:00:07]} 13. Rad1 {[%emt 0:03:33]} Ne8 {[%emt 0:09:33]} 14. e5 {[%emt 0:03:30]} Rc8 $18 {[%emt 0:06:39]} (14... Bxb5 $16 {was worth a try.} 15. Nxb5 (15. axb5 g5 $16) 15... a6) 15. Bxd7 {[%emt 0:09:10]} Qxd7 {[%emt 0:00:04]} 16. Re2 {[%emt 0:01:14]} Rd8 {[%emt 0:07:49]} 17. Qe3 {[%emt 0:17:50]} Nc7 {[%emt 0:06:26]} 18. Qe4 {[%emt 0:05:44]} 1/2-1/2